fUSD/lending_fUSD_20260309
["ID","MTS","AMOUNT","RATE_DAILY","PERIOD"]
[408013006,1773025843652,-151.9746972,0.00019878,2]
[408013007,1773025843661,-500.0,0.00019891,2]
[408013008,1773025843671,-500.0,0.00019891,2]
[408013009,1773025843681,-25000.0,0.00019891,3]
[408013010,1773025843690,-2000.0,0.000199,2]
[408013011,1773025843699,-2000.0,0.000199,2]
[408013012,1773025843708,-2000.0,0.000199,2]
[408013013,1773025843718,-2000.0,0.000199,2]
[408013014,1773025843727,-2000.0,0.000199,2]
[408013015,1773025843737,-15680.00157158,0.000199,3]
[408013016,1773025843748,-451.14145457,0.000199,3]
[408013028,1773025845799,-8868.85697385,0.000199,3]
[408013029,1773025845814,-2000.0,0.000199,2]
[408013030,1773025845823,-2000.0,0.000199,2]
[408013031,1773025845833,-632.2526478,0.000199,2]
[408013032,1773025845841,-4809.18684171,0.000199,3]
[408013033,1773025845854,-665.13849342,0.000199,3]
[408013034,1773025845880,-19244.58826926,0.000199,3]
[408013035,1773025845889,-5800.0,0.000199,2]
[408013036,1773025845898,-2000.0,0.000199,2]
[408013037,1773025845906,-151.0,0.000199,2]
[408013038,1773025845915,-1515.0,0.000199,2]
[408013039,1773025845924,-151.0,0.000199,2]
[408013040,1773025845933,-1515.0,0.000199,2]
[408013041,1773025845942,-166.0,0.000199,2]
[408013042,1773025845951,-202.88572961,0.000199,2]
[408013043,1773025845960,-166.0,0.000199,2]
[408013044,1773025845969,-1515.0,0.000199,2]
[408013045,1773025845977,-151.0,0.000199,2]
[408013046,1773025845986,-160.0,0.000199,2]
[408013047,1773025845995,-166.0,0.000199,2]
[408013048,1773025846005,-151.0,0.000199,2]
[408013049,1773025846014,-1515.0,0.000199,2]
[408013050,1773025846023,-166.0,0.000199,2]
[408013051,1773025846032,-160.0,0.000199,2]
[408013052,1773025846041,-151.0,0.000199,2]
[408013053,1773025846049,-1515.0,0.000199,2]
[408013054,1773025846062,-166.0,0.000199,2]
[408013055,1773025846071,-151.0,0.000199,2]
[408013056,1773025846084,-1515.0,0.000199,2]
[408013057,1773025846094,-166.0,0.000199,2]
[408013058,1773025846103,-1515.0,0.000199,2]
[408013059,1773025846112,-166.0,0.000199,2]
[408013060,1773025846121,-1515.0,0.000199,2]
[408013061,1773025846131,-185.0,0.000199,2]
[408013062,1773025846140,-1515.0,0.000199,2]
[408013063,1773025846150,-1515.0,0.000199,2]
[408013064,1773025846160,-1515.0,0.000199,2]
[408013065,1773025846169,-315.07059931,0.000199,2]
[408013066,1773025846179,-151.0,0.000199,2]
[408013067,1773025846188,-151.0,0.000199,2]
[408013068,1773025846198,-10967.0309982,0.000199,2]
[408013069,1773025846207,-1100.0,0.000199,7]
[408013070,1773025846216,-298.913867,0.000199,2]
[408013071,1773025846225,-584.068848,0.000199,2]
[408013072,1773025846235,-584.068848,0.000199,2]
[408013073,1773025846245,-584.068848,0.000199,2]
[408013074,1773025846256,-584.068848,0.000199,2]
[408013075,1773025846265,-2000.0,0.000199,2]
[408013076,1773025846275,-151.0,0.000199,2]
[408013077,1773025846285,-160.0,0.000199,2]
[408013078,1773025846295,-151.0,0.000199,2]
[408013079,1773025846308,-2623.80648398,0.000199,2]
[408013080,1773025846317,-2991.76710851,0.000199,2]
[408013081,1773025846327,-3209.0,0.000199,2]
[408013082,1773025846336,-13397.06450253,0.000199,2]
[408013083,1773025846346,-8578.17162673,0.00019901,2]
[408013084,1773025846356,-439.0,0.00019911,2]
[408013085,1773025846365,-224.4,0.0001992,2]
[408013086,1773025846375,-178.78,0.00019925,2]
[408013087,1773025846384,-500.0,0.00019945,2]
[408013088,1773025846394,-418.27881417,0.00019945,2]
[408013089,1773025846404,-250.0,0.0001995,2]
[408013090,1773025846414,-1108.21987424,0.0001995,15]
[408013091,1773025846423,-18120.7735741,0.00019958,2]
[408013092,1773025846433,-13191.4345207,0.00019958,2]
[408013093,1773025846442,-2792.5430726,0.00019958,2]
[408013094,1773025846451,-151.0,0.00019958,2]
[408013095,1773025846460,-151.0,0.00019958,2]
[408013096,1773025846470,-521.506933,0.00019958,2]
[408013097,1773025846479,-521.506933,0.00019958,2]
[408013098,1773025846488,-521.506933,0.00019958,2]
[408013099,1773025846497,-521.506933,0.00019958,2]
[408013100,1773025846506,-151.0,0.00019958,2]
[408013101,1773025846516,-151.0,0.00019958,2]
[408013102,1773025846525,-151.0,0.00019958,2]
[408013103,1773025846534,-151.34857,0.00019958,2]
[408013104,1773025846543,-152.585166,0.00019958,2]
[408013105,1773025846554,-293.385101,0.00019958,2]
[408013106,1773025846563,-293.385101,0.00019958,2]
[408013107,1773025846572,-293.385101,0.00019958,2]
[408013108,1773025846582,-293.385101,0.00019958,2]
[408013109,1773025846591,-151.0,0.00019958,2]
[408013110,1773025846601,-151.0,0.00019958,2]
[408013111,1773025846611,-152.429617,0.00019958,2]
[408013112,1773025846620,-1000.0,0.00019963,2]
[408013113,1773025846630,-1000.0,0.00019963,2]
[408013114,1773025846639,-1000.0,0.00019963,2]
[408013115,1773025846649,-1000.0,0.00019963,2]
[408013116,1773025846659,-1000.0,0.00019963,2]
[408013117,1773025846668,-1000.0,0.00019963,2]
[408013118,1773025846678,-1000.0,0.00019963,2]
[408013119,1773025846687,-1000.0,0.00019963,2]
[408013120,1773025846697,-1000.0,0.00019963,2]
[408013121,1773025846707,-276.0,0.00019967,2]
[408013122,1773025846716,-152.8085332,0.0001997,2]
[408013123,1773025846725,-250.0,0.00019972,2]
[408013156,1773025847079,-323.77109867,0.00019973,2]
[408013158,1773025847089,-150.0,0.00019973,2]
[408013160,1773025847098,-2573.0,0.00019979,2]
[408013162,1773025847108,-2934.0,0.00019979,3]
[408013164,1773025847117,-61299.15631411,0.0001998,2]
[408013195,1773025847460,-376.21289044,0.0001998,2]
[408013196,1773025946573,500.0,8e-05,2]
[408013197,1773025947030,816.89822933,8e-05,2]
[408013201,1773026181111,500.0,0.0002,120]
[408013202,1773026225397,162.0,0.00013106,2]
[408013203,1773026241842,500.0,8.106e-05,2]
[408013205,1773026403176,258.0,0.00013106,2]
[408013206,1773026405604,162.0,0.00013106,2]
[408013207,1773026406818,165.0,0.00013106,2]
[408013208,1773026531291,500.0,0.00013106,2]
[408013209,1773026531344,151.0,0.00013106,2]
[408013210,1773026531488,500.0,0.00013106,2]
[408013211,1773026531658,151.0,0.00013106,2]
[408013212,1773026532096,500.0,0.00013106,2]
[408013213,1773026532272,151.0,0.00013106,2]
[408013214,1773026532694,500.0,0.00013106,2]
[408013215,1773026532886,151.0,0.00013106,2]
[408013216,1773026533325,500.0,0.00013106,2]
[408013217,1773026533543,151.0,0.00013106,2]
[408013218,1773026533931,500.0,0.00013106,2]
[408013219,1773026534151,151.0,0.00013106,2]
[408013220,1773026534528,500.0,0.00013106,2]
[408013221,1773026534732,151.0,0.00013106,2]
[408013222,1773026535120,500.0,0.00013106,2]
[408013223,1773026535716,500.0,0.00013106,2]
[408013224,1773026535766,-500.0,0.00013106,2]
[408013225,1773026536318,500.0,0.00013106,2]
[408013226,1773026536941,500.0,0.00013106,2]
[408013227,1773026537873,500.0,0.00013106,2]
[408013228,1773026538510,500.0,0.00013106,2]
[408013229,1773026539118,151.0,0.00013106,2]
[408013230,1773026539152,500.0,0.00013106,2]
[408013231,1773026539748,500.0,0.00013106,2]
[408013232,1773026540354,500.0,0.00013106,2]
[408013233,1773026542716,151.0,0.00013106,2]
[408013234,1773026543279,151.0,0.00013106,2]
[408013235,1773026543888,151.0,0.00013106,2]
[408013236,1773026544496,151.0,0.00013106,2]
[408013237,1773026545353,151.0,0.00013106,2]
[408013238,1773026545415,151.0,0.00013106,2]
[408013239,1773026545534,500.0,0.00013106,2]
[408013240,1773026545970,151.0,0.00013106,2]
[408013241,1773026546164,500.0,0.00013106,2]
[408013242,1773026546190,151.0,0.00013106,2]
[408013243,1773026546564,151.0,0.00013106,2]
[408013244,1773026546785,151.0,0.00013106,2]
[408013245,1773026546820,500.0,0.00013106,2]
[408013246,1773026547386,151.0,0.00013106,2]
[408013247,1773026547987,151.0,0.00013106,2]
[408013248,1773026548639,151.0,0.00013106,2]
[408013249,1773026549257,151.0,0.00013106,2]
[408013250,1773026549863,151.0,0.00013106,2]
[408013251,1773026550490,151.0,0.00013106,2]
[408013252,1773026550878,500.0,0.00013106,2]
[408013253,1773026551154,151.0,0.00013106,2]
[408013254,1773026551514,500.0,0.00013106,2]
[408013255,1773026767306,162.0,0.00013006,2]
[408013256,1773026808494,1069.0,0.0002,120]
[408013262,1773026839733,500.0,8.006e-05,2]
[408013263,1773026843859,500.0,8.006e-05,2]
[408013265,1773027002853,515.0,0.0002,120]
[408013266,1773027007020,164.0,0.00013006,2]
[408013267,1773027009562,-500.0,0.00013006,2]
[408013273,1773027031854,-254.29460697,0.00013081,2]
[408013274,1773027031864,-353.27037336,0.00013093,2]
[408013275,1773027031875,-146.72962664,0.00013093,2]
[408013276,1773027031885,-459.0,0.00013105,2]
[408013277,1773027031894,-334.6534335,0.00013105,2]
[408013278,1773027031906,-865.3465665,0.00013105,2]
[408013279,1773027031915,-300.0,0.00013105,2]
[408013280,1773027031924,-150.0,0.00013105,2]
[408013281,1773027031933,-300.0,0.00013105,2]
[408013282,1773027031942,-500.0,0.00013106,2]
[408013283,1773027031951,-151.0,0.00013106,2]
[408013284,1773027031961,-500.0,0.00013106,2]
[408013285,1773027031970,-151.0,0.00013106,2]
[408013286,1773027031979,-547.8515948,0.00013106,2]
[408013287,1773027031988,-151.0,0.00013106,2]
[408013288,1773027031997,-151.0,0.00013106,2]
[408013289,1773027032006,-151.0,0.00013106,2]
[408013290,1773027032015,-151.0,0.00013106,2]
[408013291,1773027032025,-151.0,0.00013106,2]
[408013292,1773027032035,-151.0,0.00013106,2]
[408013293,1773027032043,-151.0,0.00013106,2]
[408013294,1773027032052,-151.0,0.00013106,2]
[408013295,1773027032062,-151.0,0.00013106,2]
[408013296,1773027032071,-500.0,0.00013106,2]
[408013297,1773027032080,-151.0,0.00013106,2]
[408013298,1773027032090,-455.32447519,0.00013106,2]
[408013299,1773027032098,-151.0,0.00013106,2]
[408013300,1773027032108,-151.0,0.00013106,2]
[408013301,1773027032127,-268.73403904,0.00013106,2]
[408013302,1773027032139,-269.62516553,0.0001331,2]
[408013304,1773027032152,-245.34712832,0.0001356,2]
[408013306,1773027032161,-200.0,0.00013699,2]
[408013307,1773027032171,-1500.0,0.0001386,2]
[408013308,1773027032181,-245.34712832,0.00013967,2]
[408013309,1773027032191,-154.24,0.00014,2]
[408013310,1773027032200,-255.0,0.00014206,2]
[408013311,1773027032210,-396.41,0.00014211,2]
[408013312,1773027032221,-300.0,0.00014307,2]
[408013313,1773027032231,-300.0,0.00014307,2]
[408013314,1773027032240,-300.0,0.00014307,2]
[408013315,1773027032250,-300.0,0.00014307,2]
[408013316,1773027032260,-600.0,0.00014307,2]
[408013317,1773027032269,-600.0,0.00014307,2]
[408013318,1773027032279,-205.30691949,0.00014307,2]
[408013319,1773027032291,-394.69308051,0.00014307,2]
[408013320,1773027032301,-197.3857858,0.00014307,2]
[408013321,1773027032313,-174.93023237,0.00014307,2]
[408013322,1773027032322,-248.96637254,0.00014328,2]
[408013323,1773027032331,-212.75435412,0.00014362,2]
[408013324,1773027032343,-1258.9,0.00014362,2]
[408013325,1773027032363,-1013.08682692,0.00014362,2]
[408013326,1773027032375,-802.43463569,0.00014362,2]
[408013327,1773027032389,-323.3292545,0.00014362,2]
[408013328,1773027032400,-304.03423716,0.00014362,2]
[408013329,1773027032412,-298.86,0.00014362,2]
[408013330,1773027032424,-495.58352721,0.00014362,2]
[408013331,1773027032435,-250.0,0.00014362,2]
[408013332,1773027032444,-193.0,0.00014371,2]
[408013333,1773027032454,-245.34712832,0.00014373,2]
[408013334,1773027032463,-300.0,0.00014389,2]
[408013335,1773027032473,-500.0,0.00014389,2]
[408013336,1773027032482,-150.10078944,0.00014389,2]
[408013337,1773027032491,-193.96734881,0.00014389,2]
[408013338,1773027032500,-1680.0,0.00014416,2]
[408013339,1773027032510,-700.96,0.00014417,2]
[408013340,1773027032519,-1820.2519966,0.00014417,2]
[408013341,1773027032543,-3031.8631592,0.00014417,2]
[408013342,1773027032555,-326.40332643,0.00014417,2]
[408013343,1773027032566,-598.56,0.00014417,2]
[408013344,1773027032597,-2792.01505464,0.00014417,2]
[408013345,1773027032609,-1564.14481556,0.00014417,2]
[408013346,1773027032622,-62.20164757,0.00014417,2]
[408013347,1773027032632,-312.13,0.00014417,2]
[408013348,1773027032642,-500.0,0.00014417,2]
[408013349,1773027032652,-299.99,0.00014426,2]
[408013350,1773027032662,-150.99,0.00014426,2]
[408013351,1773027032672,-121993.70647949,0.00014427,2]
[408013359,1773027038063,-84553.53392051,0.00014427,2]
[408013360,1773027038072,-500.0,0.00014473,2]
[408013361,1773027038082,-500.0,0.00014473,2]
[408013362,1773027038091,-573.71566546,0.00014473,2]
[408013363,1773027038100,-501.3869553,0.00014473,2]
[408013364,1773027038109,-500.0,0.00014473,2]
[408013365,1773027038119,-318.80870571,0.00014473,2]
[408013366,1773027038128,-500.0,0.00014473,2]
[408013367,1773027038138,-503.07726855,0.00014473,2]
[408013368,1773027038150,-500.0,0.00014473,2]
[408013369,1773027038161,-500.86023823,0.00014473,2]
[408013372,1773027038421,-500.0,0.00014473,2]
[408013373,1773027038447,-3240.0,0.00014551,2]
[408013374,1773027038456,-154.24,0.0001465,2]
[408013375,1773027038466,-166.66,0.00014717,2]
[408013376,1773027038475,-2090.75,0.00014853,2]
[408013377,1773027038484,-150.0,0.00014991,2]
[408013378,1773027038493,-296.050996,0.00014992,2]
[408013379,1773027038503,-500.0,0.00015,30]
[408013380,1773027038512,-500.0,0.00015,30]
[408013381,1773027038522,-500.0,0.00015,30]
[408013382,1773027038531,-396.41,0.00015001,2]
[408013383,1773027038540,-501.42040983,0.00015021,2]
[408013384,1773027038549,-501.5560496,0.00015021,2]
[408013385,1773027038559,-1000.0,0.00015021,2]
[408013386,1773027038571,-1002.91011337,0.00015021,2]
[408013387,1773027038581,-500.6764377,0.00015021,2]
[408013388,1773027038591,-295.49,0.00015068,2]
[408013389,1773027038601,-2000.0,0.00015097,2]
[408013390,1773027038611,-394.0,0.000151,3]
[408013391,1773027038620,-166.66,0.00015202,2]
[408013392,1773027038629,-311.4,0.00015212,2]
[408013393,1773027038638,-154.24,0.000153,2]
[408013394,1773027038648,-2194.35,0.00015326,2]
[408013395,1773027038658,-433.0,0.00015399,2]
[408013396,1773027038667,-5533.0,0.000155,5]
[408013397,1773027038676,-1004.90829082,0.00015568,2]
[408013398,1773027038685,-166.66,0.00015688,2]
[408013399,1773027038695,-396.41,0.0001579,2]
[408013400,1773027038704,-252.42754895,0.00015845,2]
[408013401,1773027038713,-2351.0,0.00015857,2]
[408013402,1773027038722,-154.24,0.0001595,2]
[408013403,1773027038732,-166.66,0.00016174,2]
[408013404,1773027038743,-396.41,0.0001658,2]
[408013405,1773027038752,-154.24,0.000166,2]
[408013406,1773027038761,-166.66,0.0001666,2]
[408013407,1773027038772,-736.0,0.00016696,2]
[408013408,1773027038783,-2000.0,0.00016984,2]
[408013409,1773027038792,-501.0,0.00017,2]
[408013410,1773027038802,-166.66,0.00017145,2]
[408013411,1773027038814,-154.24,0.0001725,2]
[408013412,1773027038823,-396.41,0.00017369,2]
[408013413,1773027038832,-2521.0,0.00017443,2]
[408013414,1773027038843,-152.0,0.00017878,3]
[408013415,1773027038855,-154.24,0.000179,2]
[408013416,1773027038864,-2161.06,0.00017986,2]
[408013417,1773027038873,-508.66609793,0.00018,2]
[408013418,1773027038882,-200.25,0.00018,4]
[408013419,1773027038892,-1400.0,0.00018082,7]
[408013420,1773027038901,-396.41,0.00018159,2]
[408013421,1773027038911,-152.0,0.00018349,4]
[408013422,1773027038920,-500.0,0.00018356,7]
[408013423,1773027038929,-1100.0,0.00018356,7]
[408013424,1773027038938,-501.0,0.0001837,3]
[408013425,1773027038947,-847.0,0.000184,2]
[408013426,1773027038956,-847.0,0.000184,2]
[408013427,1773027038966,-154.24,0.0001855,2]
[408013428,1773027038974,-161.0,0.0001872,2]
[408013429,1773027038983,-2804.0,0.0001872,2]
[408013430,1773027038993,-152.0,0.0001882,5]
[408013431,1773027039002,-453.11,0.00018826,2]
[408013432,1773027039011,-891.0,0.0001883,2]
[408013433,1773027039020,-172.87392778,0.0001885,2]
[408013434,1773027039030,-160.0,0.0001885,2]
[408013435,1773027039040,-2000.0,0.00018871,2]
[408013436,1773027039049,-396.41,0.00018948,2]
[408013437,1773027039059,-1428.38747117,0.00018966,2]
[408013438,1773027039069,-500.0,0.00018966,2]
[408013439,1773027039078,-578.20924308,0.00018966,2]
[408013440,1773027039088,-200.0,0.00018966,2]
[408013441,1773027039097,-174.61919141,0.00018966,2]
[408013442,1773027039106,-262.90206542,0.00018966,2]
[408013443,1773027039116,-500.0,0.00018966,2]
[408013444,1773027039126,-500.0,0.00018966,2]
[408013445,1773027039135,-500.0,0.00018966,2]
[408013446,1773027039149,-500.0,0.00018966,2]
[408013447,1773027039158,-500.0,0.00018966,2]
[408013448,1773027039168,-500.0,0.00018966,2]
[408013449,1773027039177,-500.0,0.00018966,2]
[408013450,1773027039187,-500.0,0.00018966,2]
[408013451,1773027039197,-500.0,0.00018966,2]
[408013452,1773027039206,-500.0,0.00018966,2]
[408013453,1773027039217,-500.0,0.00018966,2]
[408013454,1773027039227,-1572.163,0.00019,2]
[408013455,1773027039237,-617.38788282,0.00019,2]
[408013456,1773027039247,-2806.0,0.0001904,2]
[408013457,1773027039257,-2806.0,0.0001904,2]
[408013458,1773027039267,-2806.0,0.0001904,2]
[408013459,1773027039276,-161.0,0.0001904,2]
[408013460,1773027039285,-605.0,0.00019149,2]
[408013461,1773027039294,-1400.0,0.00019178,7]
[408013462,1773027039303,-484.06,0.00019178,30]
[408013463,1773027039313,-1000.0,0.00019178,2]
[408013464,1773027039322,-605.0,0.00019191,2]
[408013465,1773027039331,-605.0,0.000192,2]
[408013466,1773027039340,-2000.0,0.000192,2]
[408013467,1773027039349,-154.24,0.000192,2]
[408013468,1773027039358,-350.0,0.00019229,2]
[408013469,1773027039367,-272.0,0.00019237,2]
[408013470,1773027039376,-152.0,0.00019291,6]
[408013471,1773027039385,-3505.0,0.00019299,2]
[408013472,1773027039395,-1342.0,0.00019299,2]
[408013473,1773027039404,-891.0,0.00019302,2]
[408013474,1773027039413,-847.0,0.0001936,2]
[408013475,1773027039424,-854.0,0.0001936,2]
[408013476,1773027039433,-272.0,0.00019432,2]
[408013477,1773027039442,-153.33762345,0.00019443,2]
[408013478,1773027039452,-151.0,0.00019449,2]
[408013479,1773027039461,-500.0,0.00019452,7]
[408013480,1773027039470,-1100.0,0.00019452,7]
[408013481,1773027039480,-1000.0,0.00019452,2]
[408013482,1773027039491,-1481.23780761,0.00019514,2]
[408013483,1773027039501,-200.0,0.00019514,2]
[408013484,1773027039511,-181.08010149,0.00019514,2]
[408013485,1773027039520,-272.62944185,0.00019514,2]
[408013486,1773027039530,-151.0,0.00019541,2]
[408013487,1773027039541,-1076.2262344,0.0001958,2]
[408013488,1773027039552,-1024.39976123,0.0001958,2]
[408013489,1773027039562,-1129.02138583,0.0001958,2]
[408013490,1773027039570,-1024.74942686,0.0001958,2]
[408013491,1773027039579,-326.06621594,0.000196,2]
[408013492,1773027039588,-1988.637184,0.000196,2]
[408013493,1773027039597,-272.0,0.00019606,2]
[408013494,1773027039606,-4098.00038395,0.00019625,2]
[408013495,1773027039615,-500.0,0.00019629,2]
[408013496,1773027039624,-500.0,0.00019629,2]
[408013497,1773027039633,-500.0,0.00019629,2]
[408013498,1773027039642,-358.12605638,0.00019629,2]
[408013499,1773027039651,-151.0,0.00019633,2]
[408013500,1773027039660,-534.75484671,0.00019656,2]
[408013513,1773027040616,-436.75223375,0.00019656,2]
[408013514,1773027040630,-488.41431202,0.00019656,2]
[408013515,1773027040741,-2638.07899143,0.00019656,2]
[408013516,1773027040752,-150.0,0.00019672,2]
[408013517,1773027040762,-150.0,0.00019672,2]
[408013518,1773027040772,-150.0,0.00019672,2]
[408013519,1773027040781,-150.0,0.00019672,2]
[408013520,1773027040790,-150.0,0.00019672,2]
[408013521,1773027040800,-150.0,0.00019672,2]
[408013522,1773027040809,-150.0,0.00019672,2]
[408013523,1773027040818,-150.0,0.00019672,2]
[408013524,1773027040827,-150.0,0.00019672,2]
[408013525,1773027040836,-150.0,0.00019672,2]
[408013526,1773027040845,-150.0,0.00019672,2]
[408013527,1773027040854,-500.0,0.00019672,2]
[408013528,1773027040863,-150.0,0.00019672,2]
[408013529,1773027040874,-61.92100857,0.00019672,2]
[408013530,1773027040895,-88.07899143,0.00019672,2]
[408013531,1773027040905,-150.0,0.00019672,2]
[408013532,1773027040919,-150.0,0.00019672,2]
[408013533,1773027040929,-150.0,0.00019672,2]
[408013534,1773027040938,-150.0,0.00019672,2]
[408013535,1773027040947,-150.0,0.00019672,2]
[408013536,1773027040957,-150.0,0.00019672,2]
[408013537,1773027040966,-150.0,0.00019672,2]
[408013538,1773027040976,-500.0,0.00019672,2]
[408013539,1773027040985,-150.0,0.00019672,2]
[408013540,1773027040994,-2963.0,0.0001968,2]
[408013541,1773027041003,-4098.00038391,0.00019686,2]
[408013542,1773027041012,-676.41,0.00019711,2]
[408013543,1773027041021,-182.415,0.00019716,2]
[408013544,1773027041030,-3759.532,0.00019716,2]
[408013545,1773027041040,-4098.00038391,0.00019717,2]
[408013546,1773027041049,-151.0,0.00019725,2]
[408013547,1773027041058,-1000.0,0.00019726,2]
[408013548,1773027041067,-150.0,0.00019727,2]
[408013549,1773027041076,-150.0,0.00019727,2]
[408013550,1773027041085,-150.0,0.00019727,2]
[408013551,1773027041095,-150.0,0.00019727,2]
[408013552,1773027041103,-167.01402663,0.00019727,2]
[408013553,1773027041113,-150.0,0.00019727,2]
[408013554,1773027041122,-150.0,0.00019727,2]
[408013555,1773027041132,-150.0,0.00019727,2]
[408013556,1773027041143,-601.16141493,0.00019727,2]
[408013557,1773027041153,-150.0,0.00019727,2]
[408013558,1773027041162,-212.18393224,0.00019727,2]
[408013559,1773027041172,-150.0,0.00019727,2]
[408013560,1773027041181,-150.0,0.00019727,2]
[408013561,1773027041191,-500.0,0.00019727,2]
[408013562,1773027041200,-150.0,0.00019727,2]
[408013563,1773027041209,-396.41,0.00019738,2]
[408013564,1773027041220,-501.0,0.00019739,4]
[408013565,1773027041229,-4098.00038391,0.00019747,2]
[408013566,1773027041238,-4999.99999901,0.0001975,7]
[408013567,1773027041247,-152.0,0.00019762,7]
[408013568,1773027041257,-4098.00038391,0.00019778,2]
[408013569,1773027041266,-200.0,0.00019782,2]
[408013570,1773027041275,-200.0,0.00019782,2]
[408013571,1773027041284,-200.0,0.00019782,2]
[408013572,1773027041293,-150.0,0.00019782,2]
[408013573,1773027041302,-200.0,0.00019782,2]
[408013574,1773027041311,-500.0,0.00019782,2]
[408013575,1773027041320,-200.0,0.00019782,2]
[408013576,1773027041329,-150.0,0.000198,14]
[408013577,1773027041338,-4098.00038391,0.00019808,2]
[408013578,1773027041347,-500.0,0.00019809,2]
[408013579,1773027041356,-151.0,0.00019816,2]
[408013580,1773027041365,-150.0,0.00019836,2]
[408013581,1773027041374,-512.0,0.00019836,2]
[408013582,1773027041383,-4098.00038391,0.00019839,2]
[408013583,1773027041392,-200.0,0.0001984,2]
[408013584,1773027041401,-154.24,0.0001985,2]
[408013585,1773027041410,-4098.00038391,0.00019869,2]
[408013586,1773027041419,-150.0,0.00019891,2]
[408013587,1773027041429,-1565.0,0.00019893,2]
[408013588,1773027041438,-2000.0,0.000199,2]
[408013589,1773027041447,-387.84302185,0.000199,2]
[408013590,1773027041456,-1440.74605278,0.000199,2]
[408013591,1773027041465,-4098.00038391,0.000199,2]
[408013592,1773027041474,-5000.0,0.000199,2]
[408013593,1773027041485,-268.1148,0.000199,2]
[408013594,1773027041494,-3993.35858801,0.000199,2]
[408013595,1773027041503,-151.0,0.00019908,2]
[408013596,1773027041512,-152.9635283,0.00019935,2]
[408013597,1773027041521,-250.0,0.00019946,2]
[408013598,1773027041530,-272.0,0.00019952,2]
[408013599,1773027041539,-11425.8174056,0.00019957,2]
[408013600,1773027041548,-6713.4302691,0.00019957,2]
[408013601,1773027041557,-835.6729224,0.00019957,2]
[408013602,1773027041566,-200.01,0.00019958,2]
[408013603,1773027041575,-151.0,0.00019972,2]
[408013604,1773027041584,-182.54299593,0.00019972,2]
[408013605,1773027041593,-500.0,0.00019973,2]
[408013606,1773027041602,-57607.00122224,0.0001998,2]
[408013607,1773027041611,-250.0,0.0001998,2]
[408013608,1773027041620,-294.07168477,0.0001998,2]
[408013609,1773027041628,-1057.1614189,0.0001998,2]
[408013610,1773027041637,-5586.98,0.00019983,2]
[408013611,1773027041646,-2934.0,0.00019989,5]
[408013612,1773027041655,-150.938,0.0001999,2]
[408013613,1773027041665,-151.0,0.00019997,2]
[408013614,1773027041674,-1279.0,0.00019998,2]
[408013615,1773027041683,-150.0,0.00019998,2]
[408013616,1773027041692,-922.0,0.00019998,2]
[408013617,1773027041701,-1213.0,0.00019998,2]
[408013618,1773027041710,-300.0,0.00019999,2]
[408013619,1773027041719,-189.50421794,0.00019999,2]
[408013620,1773027041728,-33181.70399474,0.00019999,2]